fUST/lending_fUST_20241120
["ID","MTS","AMOUNT","RATE_DAILY","PERIOD"]
[342758923,1732115433527,-500.0,0.00021917,2]
[342758925,1732115433537,-500.0,0.00021917,2]
[342758927,1732115433547,-500.0,0.00021917,2]
[342758929,1732115433558,-500.0,0.00021917,2]
[342758931,1732115433569,-500.0,0.00021917,2]
[342758934,1732115433579,-500.0,0.00021917,2]
[342758935,1732115433593,-502.1,0.00021917,2]
[342758938,1732115433603,-500.0,0.00021917,2]
[342758940,1732115433614,-500.0,0.00021917,2]
[342758942,1732115433624,-500.0,0.00021917,2]
[342758944,1732115433635,-500.0,0.00021917,2]
[342758945,1732115433645,-500.0,0.00021917,2]
[342758948,1732115433656,-500.0,0.00021917,2]
[342758950,1732115433666,-500.0,0.00021917,2]
[342758952,1732115433678,-500.0,0.00021917,2]
[342758954,1732115433688,-500.0,0.00021917,2]
[342758956,1732115433699,-500.0,0.00021917,2]
[342758958,1732115433710,-500.0,0.00021917,2]
[342758960,1732115433720,-500.0,0.00021917,2]
[342758962,1732115433730,-500.0,0.00021917,2]
[342758964,1732115433741,-500.0,0.00021917,2]
[342758966,1732115433751,-500.0,0.00021917,2]
[342758968,1732115433761,-500.0,0.00021917,2]
[342758970,1732115433771,-370.96666188,0.00021917,2]
[342758972,1732115433782,-500.0,0.00021917,2]
[342758974,1732115433791,-500.0,0.00021917,2]
[342758976,1732115433802,-500.0,0.00021917,2]
[342758978,1732115433812,-500.0,0.00021917,2]
[342758980,1732115433822,-500.0,0.00021917,2]
[342758982,1732115433832,-500.0,0.00021917,2]
[342758984,1732115433845,-607.86206216,0.00021917,2]
[342758986,1732115433855,-500.0,0.00021917,2]
[342758988,1732115433866,-500.0,0.00021917,2]
[342758990,1732115433876,-500.0,0.00021917,2]
[342758992,1732115433887,-500.0,0.00021917,2]
[342758994,1732115433898,-500.0,0.00021917,2]
[342758996,1732115433908,-500.0,0.00021917,2]
[342758998,1732115433919,-504.07500167,0.00021917,2]
[342759000,1732115433929,-500.0,0.00021917,2]
[342759002,1732115433939,-500.0,0.00021917,2]
[342759004,1732115433949,-500.0,0.00021917,2]
[342759006,1732115433959,-500.0,0.00021917,2]
[342759008,1732115433969,-510.48,0.00021917,2]
[342759010,1732115433980,-501.356347,0.00021917,2]
[342759012,1732115433989,-500.0,0.00021917,2]
[342759014,1732115433998,-156.8110825,0.00021917,2]
[342759015,1732115434008,-541.71,0.00021917,2]
[342759016,1732115434018,-500.0,0.00021917,2]
[342759017,1732115434029,-500.0,0.00021917,2]
[342759018,1732115434039,-500.0,0.00021917,2]
[342759019,1732115434048,-500.0,0.00021917,2]
[342759020,1732115434058,-500.0,0.00021917,2]
[342759021,1732115434068,-500.0,0.00021917,2]
[342759022,1732115434078,-500.0,0.00021917,2]
[342759023,1732115434091,-500.0,0.00021917,2]
[342759024,1732115434101,-500.0,0.00021917,2]
[342759025,1732115434110,-505.64600726,0.00021917,2]
[342759026,1732115434120,-500.0,0.00021917,2]
[342759027,1732115434130,-500.0,0.00021917,2]
[342759028,1732115434140,-500.0,0.00021917,2]
[342759029,1732115434150,-500.0,0.00021917,2]
[342759030,1732115434160,-500.0,0.00021917,2]
[342759031,1732115434173,-500.0,0.00021917,2]
[342759032,1732115434183,-3913.24,0.00021917,2]
[342759033,1732115434193,-500.0,0.00021917,2]
[342759034,1732115434203,-500.0,0.00021917,2]
[342759035,1732115434213,-500.0,0.00021917,2]
[342759036,1732115434223,-500.0,0.00021917,2]
[342759037,1732115434233,-500.0,0.00021917,2]
[342759038,1732115434244,-500.0,0.00021917,2]
[342759039,1732115434254,-506.19441422,0.00021917,2]
[342759040,1732115434264,-599.29,0.00021917,2]
[342759041,1732115434274,-500.0,0.00021917,2]
[342759042,1732115434284,-500.0,0.00021917,2]
[342759043,1732115434293,-500.0,0.00021917,2]
[342759044,1732115434303,-500.0,0.00021917,2]
[342759045,1732115434318,-500.0,0.00021917,2]
[342759046,1732115434328,-589.97,0.00021917,2]
[342759047,1732115434340,-500.0,0.00021917,2]
[342759048,1732115434350,-500.0,0.00021917,2]
[342759049,1732115434360,-274.2534974,0.00021917,2]
[342759050,1732115434370,-500.0,0.00021917,2]
[342759051,1732115434379,-500.0,0.00021917,2]
[342759052,1732115434389,-500.0,0.00021917,2]
[342759053,1732115434401,-500.0,0.00021917,2]
[342759054,1732115434410,-1468.69,0.00021917,2]
[342759055,1732115434420,-500.0,0.00021917,2]
[342759056,1732115434430,-500.0,0.00021917,2]
[342759057,1732115434440,-500.0,0.00021917,2]
[342759058,1732115434449,-500.0,0.00021917,2]
[342759059,1732115434459,-537.18,0.00021917,2]
[342759060,1732115434469,-1068.24,0.00021917,2]
[342759061,1732115434479,-500.0,0.00021917,2]
[342759062,1732115434489,-500.0,0.00021917,2]
[342759063,1732115434499,-592.65,0.00021917,2]
[342759064,1732115434509,-500.0,0.00021917,2]
[342759065,1732115434518,-805.36,0.00021917,2]
[342759066,1732115434527,-624.23188071,0.00021917,2]
[342759067,1732115434537,-500.0,0.00021917,2]
[342759068,1732115434546,-682.97,0.00021917,2]
[342759069,1732115434555,-500.0,0.00021917,2]
[342759070,1732115434564,-500.0,0.00021917,2]
[342759071,1732115434574,-3188.15,0.00021917,2]
[342759072,1732115434584,-500.0,0.00021917,2]
[342759073,1732115434597,-500.0,0.00021917,2]
[342759074,1732115434608,-1269.68899373,0.00021991,2]
[342759075,1732115434619,-3000.0,0.00022,2]
[342759076,1732115434629,-52923.689,0.00022081,2]
[342759077,1732115434639,-604.13510498,0.00022091,2]
[342759078,1732115434649,-500.0,0.00022191,2]
[342759079,1732115434659,-500.0,0.00022191,2]
[342759080,1732115434669,-500.0,0.00022191,2]
[342759081,1732115434679,-500.0,0.00022191,2]
[342759082,1732115434688,-504.34,0.00022191,2]
[342759083,1732115434698,-500.0,0.00022191,2]
[342759084,1732115434708,-500.0,0.00022191,2]
[342759085,1732115434717,-500.0,0.00022191,2]
[342759086,1732115434728,-500.0,0.00022191,2]
[342759087,1732115434737,-560.72,0.00022191,2]
[342759088,1732115434747,-500.0,0.00022191,2]
[342759089,1732115434756,-500.0,0.00022191,2]
[342759090,1732115434766,-500.0,0.00022191,2]
[342759091,1732115434775,-500.0,0.00022191,2]
[342759092,1732115434785,-941.2,0.00022191,2]
[342759093,1732115434795,-500.0,0.00022191,2]
[342759094,1732115434805,-500.0,0.00022191,2]
[342759095,1732115434814,-500.0,0.00022191,2]
[342759096,1732115434824,-500.0,0.00022191,2]
[342759097,1732115434834,-500.0,0.00022191,2]
[342759098,1732115434849,-500.0,0.00022191,2]
[342759099,1732115434858,-500.0,0.00022191,2]
[342759100,1732115434868,-561.05806148,0.00022191,2]
[342759101,1732115434879,-500.0,0.00022191,2]
[342759102,1732115434891,-459.18529051,0.00022191,2]
[342759103,1732115434901,-384.41985498,0.00022191,2]
[342759104,1732115434911,-500.0,0.00022191,2]
[342759105,1732115434921,-500.0,0.00022191,2]
[342759106,1732115434931,-500.0,0.00022191,2]
[342759107,1732115434942,-500.0,0.00022191,2]
[342759108,1732115434953,-466.25499976,0.00022191,2]
[342759109,1732115434963,-151.0,0.00022191,7]
[342759110,1732115434973,-151.0,0.00022191,7]
[342759111,1732115434984,-500.0,0.00022191,2]
[342759112,1732115434994,-500.0,0.00022191,2]
[342759113,1732115435004,-151.0,0.00022191,7]
[342759114,1732115435014,-3913.24,0.00022191,2]
[342759115,1732115435023,-500.0,0.00022191,2]
[342759116,1732115435033,-500.0,0.00022191,2]
[342759117,1732115435043,-500.0,0.00022191,2]
[342759118,1732115435053,-599.29,0.00022191,2]
[342759119,1732115435062,-500.0,0.00022191,2]
[342759120,1732115435072,-500.0,0.00022191,2]
[342759121,1732115435081,-589.97,0.00022191,2]
[342759122,1732115435094,-500.0,0.00022191,2]
[342759123,1732115435104,-500.0,0.00022191,2]
[342759124,1732115435113,-216.02777,0.00022191,7]
[342759125,1732115435123,-216.02777,0.00022191,7]
[342759126,1732115435133,-151.0,0.00022191,7]
[342759127,1732115435143,-550.32904494,0.00022191,2]
[342759128,1732115435153,-1468.69,0.00022191,2]
[342759129,1732115435162,-500.0,0.00022191,2]
[342759130,1732115435172,-500.0,0.00022191,2]
[342759131,1732115435181,-1068.24,0.00022191,2]
[342759132,1732115435191,-564.15,0.00022191,2]
[342759133,1732115435201,-500.0,0.00022191,2]
[342759134,1732115435210,-592.65,0.00022191,2]
[342759135,1732115435220,-500.0,0.00022191,2]
[342759136,1732115435230,-805.36,0.00022191,2]
[342759137,1732115435240,-260.79734,0.00022191,7]
[342759138,1732115435250,-260.79734,0.00022191,7]
[342759139,1732115435259,-500.0,0.00022191,2]
[342759140,1732115435270,-151.0,0.00022191,7]
[342759141,1732115435280,-682.97,0.00022191,2]
[342759142,1732115435290,-500.0,0.00022191,2]
[342759143,1732115435300,-3188.15,0.00022191,2]
[342759144,1732115435310,-500.0,0.00022191,2]
[342759145,1732115435323,-500.0,0.00022465,2]
[342759146,1732115435333,-500.0,0.00022465,2]
[342759147,1732115435345,-500.0,0.00022465,2]
[342759148,1732115435355,-500.0,0.00022465,2]
[342759149,1732115435366,-384.95671836,0.00022465,2]
[342759150,1732115435375,-392.549347,0.00022465,7]
[342759151,1732115435385,-392.549347,0.00022465,7]
[342759152,1732115435395,-500.0,0.00022465,2]
[342759153,1732115435405,-151.0,0.00022465,7]
[342759154,1732115435415,-151.0,0.00022465,7]
[342759155,1732115435424,-560.72,0.00022465,2]
[342759156,1732115435433,-500.0,0.00022465,2]
[342759157,1732115435442,-440.64408139,0.00022465,2]
[342759158,1732115435452,-500.0,0.00022465,2]
[342759159,1732115435462,-941.2,0.00022465,2]
[342759160,1732115435471,-549.19,0.00022465,2]
[342759161,1732115435481,-500.0,0.00022465,2]
[342759162,1732115435490,-500.0,0.00022465,2]
[342759163,1732115435499,-152.955884,0.00022465,7]
[342759164,1732115435509,-689.189192,0.00022465,7]
[342759165,1732115435519,-689.189192,0.00022465,7]
[342759166,1732115435529,-500.0,0.00022465,2]
[342759167,1732115435539,-362.76,0.00022465,2]
[342759168,1732115435548,-968.571254,0.00022465,7]
[342759169,1732115435558,-968.571254,0.00022465,7]
[342759170,1732115435567,-500.0,0.00022465,2]
[342759171,1732115435577,-151.0,0.00022465,7]
[342759172,1732115435687,-373.63,0.00022465,2]
[342759173,1732115435697,-171.692444,0.00022465,7]
[342759174,1732115435707,-171.692444,0.00022465,7]
[342759175,1732115435717,-500.0,0.00022465,2]
[342759176,1732115435727,-151.0,0.00022465,7]
[342759177,1732115435736,-151.0,0.00022465,7]
[342759178,1732115435746,-169.386726,0.00022465,7]
[342759179,1732115435755,-500.0,0.00022465,2]
[342759180,1732115435764,-500.0,0.00022465,2]
[342759181,1732115435774,-3913.24,0.00022465,2]
[342759182,1732115435784,-164.852149,0.00022465,7]
[342759183,1732115435793,-500.0,0.00022465,2]
[342759184,1732115435803,-500.0,0.00022465,2]
[342759185,1732115435812,-164.852149,0.00022465,7]
[342759186,1732115435822,-500.0,0.00022465,2]
[342759187,1732115435831,-599.29,0.00022465,2]
[342759188,1732115435843,-500.0,0.00022465,2]
[342759189,1732115435853,-500.0,0.00022465,2]
[342759190,1732115435862,-589.97,0.00022465,2]
[342759191,1732115435871,-500.0,0.00022465,2]
[342759192,1732115435881,-500.0,0.00022465,2]
[342759193,1732115435890,-151.0,0.00022465,7]
[342759194,1732115435900,-1468.69,0.00022465,2]
[342759195,1732115435909,-500.0,0.00022465,2]
[342759196,1732115435919,-500.0,0.00022465,2]
[342759197,1732115435928,-1068.24,0.00022465,2]
[342759198,1732115435937,-500.0,0.00022465,2]
[342759199,1732115435947,-592.65,0.00022465,2]
[342759200,1732115435956,-500.0,0.00022465,2]
[342759201,1732115435966,-805.36,0.00022465,2]
[342759202,1732115435975,-260.79734,0.00022465,7]
[342759203,1732115435984,-260.79734,0.00022465,7]
[342759204,1732115435994,-151.0,0.00022465,7]
[342759205,1732115436003,-500.0,0.00022465,2]
[342759206,1732115436012,-682.97,0.00022465,2]
[342759207,1732115436021,-500.0,0.00022465,2]
[342759208,1732115436031,-3188.15,0.00022465,2]
[342759209,1732115436039,-500.0,0.00022465,2]
[342759210,1732115436049,-500.0,0.00022739,2]
[342759211,1732115436058,-151.0,0.00022739,7]
[342759212,1732115436068,-151.0,0.00022739,7]
[342759213,1732115436077,-4447.545672,0.00022739,7]
[342759214,1732115436086,-4447.545672,0.00022739,7]
[342759215,1732115436098,-500.0,0.00022739,2]
[342759216,1732115436107,-500.0,0.00022739,2]
[342759217,1732115436116,-500.0,0.00022739,2]
[342759218,1732115436125,-478.40143,0.00022739,7]
[342759219,1732115436134,-500.0,0.00022739,2]
[342759220,1732115436143,-151.0,0.00022739,7]
[342759221,1732115436153,-560.72,0.00022739,2]
[342759222,1732115436162,-500.0,0.00022739,2]
[342759223,1732115436172,-151.0,0.00022739,7]
[342759224,1732115436181,-156.149898,0.00022739,7]
[342759225,1732115436190,-500.0,0.00022739,2]
[342759226,1732115436199,-941.2,0.00022739,2]
[342759227,1732115436209,-151.0,0.00022739,7]
[342759228,1732115436219,-151.0,0.00022739,7]
[342759229,1732115436227,-500.0,0.00022739,2]
[342759230,1732115436236,-500.0,0.00022739,2]
[342759231,1732115436245,-247.41,0.00022739,2]
[342759232,1732115436255,-968.571254,0.00022739,7]
[342759233,1732115436263,-968.571254,0.00022739,7]
[342759234,1732115436272,-151.0,0.00022739,7]
[342759235,1732115436282,-500.0,0.00022739,2]
[342759236,1732115436292,-151.0,0.00022739,7]
[342759237,1732115436301,-171.692444,0.00022739,7]
[342759238,1732115436312,-171.692444,0.00022739,7]
[342759239,1732115436323,-544.41875168,0.00022739,2]
[342759240,1732115436333,-151.0,0.00022739,7]
[342759241,1732115436345,-151.0,0.00022739,7]
[342759242,1732115436355,-151.0,0.00022739,7]
[342759243,1732115436365,-151.0,0.00022739,7]
[342759244,1732115436375,-500.0,0.00022739,2]
[342759245,1732115436384,-500.0,0.00022739,2]
[342759246,1732115436395,-151.0,0.00022739,7]
[342759247,1732115436405,-151.0,0.00022739,7]
[342759248,1732115436414,-3913.24,0.00022739,2]
[342759249,1732115436423,-164.852149,0.00022739,7]
[342759250,1732115436433,-558.81,0.00022739,2]
[342759251,1732115436442,-164.852149,0.00022739,7]
[342759252,1732115436452,-500.0,0.00022739,2]
[342759253,1732115436461,-599.29,0.00022739,2]
[342759254,1732115436470,-500.0,0.00022739,2]
[342759255,1732115436480,-500.0,0.00022739,2]
[342759256,1732115436490,-589.97,0.00022739,2]
[342759257,1732115436500,-500.0,0.00022739,2]
[342759258,1732115436510,-500.0,0.00022739,2]
[342759259,1732115436519,-216.02777,0.00022739,7]
[342759260,1732115436530,-216.02777,0.00022739,7]
[342759261,1732115436540,-216.02777,0.00022739,7]
[342759262,1732115436550,-216.02777,0.00022739,7]
[342759263,1732115436560,-151.0,0.00022739,7]
[342759264,1732115436569,-1468.69,0.00022739,2]
[342759265,1732115436579,-500.0,0.00022739,2]
[342759266,1732115436588,-500.0,0.00022739,2]
[342759267,1732115436603,-1068.24,0.00022739,2]
[342759268,1732115436612,-610.89,0.00022739,2]
[342759269,1732115436621,-592.65,0.00022739,2]
[342759270,1732115436630,-500.0,0.00022739,2]
[342759271,1732115436639,-805.36,0.00022739,2]
[342759272,1732115436649,-260.79734,0.00022739,7]
[342759273,1732115436658,-260.79734,0.00022739,7]
[342759274,1732115436668,-500.0,0.00022739,2]
[342759275,1732115436679,-151.0,0.00022739,7]
[342759276,1732115436689,-682.97,0.00022739,2]
[342759277,1732115436699,-500.0,0.00022739,2]
[342759278,1732115436708,-3188.15,0.00022739,2]
[342759279,1732115436718,-500.0,0.00022739,2]
[342759280,1732115436727,-599.0,0.00022837,15]
[342759281,1732115436737,-1000.0,0.000229,2]
[342759282,1732115436746,-250.18527978,0.000229,2]
[342759283,1732115436755,-330.0,0.000229,2]
[342759284,1732115436765,-3109.56298262,0.0002294,2]
[342759285,1732115436774,-500.0,0.00022973,2]
[342759286,1732115436784,-171.692444,0.00022977,7]
[342759287,1732115436793,-171.692444,0.00022977,7]
[342759288,1732115436803,-151.0,0.00022977,7]
[342759289,1732115436812,-262379.69497181,0.00023,5]
[342759290,1732115436822,-321153.8718846,0.00023,5]
[342759291,1732115436832,-1287.56112788,0.00023,5]
[342759292,1732115436846,-151.0,0.00023,7]
[342759293,1732115436859,-151.0,0.00023,7]
[342759294,1732115436873,-151.0,0.00023,7]
[342759295,1732115436885,-151.0,0.00023,7]
[342759296,1732115436898,-151.0,0.00023,7]
[342759297,1732115436911,-151.0,0.00023,7]
[342759298,1732115436922,-152.188017,0.00023,7]
[342759299,1732115436933,-222.769144,0.00023,7]
[342759300,1732115436946,-151.0,0.00023,7]
[342759301,1732115436957,-16175.81349603,0.00023,5]
[342759302,1732115436970,-151.0,0.00023,7]
[342759303,1732115436982,-151.0,0.00023,7]
[342759304,1732115436994,-151.0,0.00023,7]
[342759305,1732115437006,-151.0,0.00023,7]
[342759306,1732115437018,-151.0,0.00023,7]
[342759307,1732115437030,-164.501678,0.00023,7]
[342759308,1732115437042,-151.0,0.00023,7]
[342759309,1732115437054,-164.501678,0.00023,7]
[342759310,1732115437067,-190278.75,0.00023,5]
[342759311,1732115437079,-151.0,0.00023,7]
[342759312,1732115437090,-151.0,0.00023,7]
[342759313,1732115437102,-151.0,0.00023,7]
[342759314,1732115437113,-151.0,0.00023,7]
[342759315,1732115437125,-151.0,0.00023,7]
[342759316,1732115437136,-151.0,0.00023,7]
[342759317,1732115437148,-151.0,0.00023,7]
[342759318,1732115437160,-151.0,0.00023,7]
[342759319,1732115437171,-283.41561,0.00023,7]
[342759320,1732115437182,-151.0,0.00023,7]
[342759321,1732115437194,-151.0,0.00023,7]
[342759322,1732115437204,-151.0,0.00023,7]
[342759323,1732115437214,-151.0,0.00023,7]
[342759324,1732115437225,-151.0,0.00023,7]
[342759325,1732115437236,-256.130494,0.00023,7]
[342759326,1732115437247,-151.0,0.00023,7]
[342759327,1732115437259,-151.0,0.00023,7]
[342759328,1732115437271,-151.0,0.00023,7]
[342759329,1732115437282,-151.0,0.00023,7]
[342759330,1732115437295,-151.0,0.00023,7]
[342759331,1732115437306,-151.0,0.00023,7]
[342759332,1732115437321,-4447.545672,0.00023,7]
[342759333,1732115437334,-4447.545672,0.00023,7]
[342759334,1732115437349,-4447.545672,0.00023,7]
[342759335,1732115437361,-4447.545672,0.00023,7]
[342759336,1732115437374,-4447.545672,0.00023,7]
[342759337,1732115437385,-4447.545672,0.00023,7]
[342759338,1732115437395,-166.424111,0.00023,7]
[342759339,1732115437405,-166.424111,0.00023,7]
[342759340,1732115437415,-166.424111,0.00023,7]
[342759341,1732115437426,-166.424111,0.00023,7]
[342759342,1732115437437,-392.549347,0.00023,7]
[342759343,1732115437448,-392.549347,0.00023,7]
[342759344,1732115437459,-392.549347,0.00023,7]
[342759345,1732115437473,-392.549347,0.00023,7]
[342759346,1732115437485,-392.549347,0.00023,7]
[342759347,1732115437496,-392.549347,0.00023,7]
[342759348,1732115437506,-478.40143,0.00023,7]
[342759349,1732115437516,-478.40143,0.00023,7]
[342759350,1732115437527,-478.40143,0.00023,7]
[342759351,1732115437537,-151.0,0.00023,7]
[342759352,1732115437548,-151.0,0.00023,7]
[342759353,1732115437559,-151.0,0.00023,7]
[342759354,1732115437571,-151.0,0.00023,7]
[342759355,1732115437582,-151.0,0.00023,7]
[342759356,1732115437596,-151.0,0.00023,7]
[342759357,1732115437607,-151.0,0.00023,7]
[342759358,1732115437617,-151.0,0.00023,7]
[342759359,1732115437629,-151.0,0.00023,7]
[342759360,1732115437640,-151.0,0.00023,7]
[342759361,1732115437651,-151.0,0.00023,7]
[342759362,1732115437662,-151.0,0.00023,7]
[342759363,1732115437672,-287.058944,0.00023,7]
[342759364,1732115437683,-1199.964133,0.00023,7]
[342759365,1732115437694,-1199.964133,0.00023,7]
[342759366,1732115437705,-1199.964133,0.00023,7]
[342759367,1732115437715,-1199.964133,0.00023,7]
[342759368,1732115437726,-689.189192,0.00023,7]
[342759369,1732115437737,-689.189192,0.00023,7]
[342759370,1732115437749,-689.189192,0.00023,7]
[342759371,1732115437761,-689.189192,0.00023,7]
[342759372,1732115437775,-689.189192,0.00023,7]
[342759373,1732115437787,-689.189192,0.00023,7]
[342759374,1732115437797,-968.571254,0.00023,7]
[342759375,1732115437809,-968.571254,0.00023,7]
[342759376,1732115437819,-968.571254,0.00023,7]
[342759378,1732115437830,-968.571254,0.00023,7]
[342759380,1732115437841,-968.571254,0.00023,7]
[342759381,1732115437855,-968.571254,0.00023,7]
[342759382,1732115437866,-968.571254,0.00023,7]
[342759383,1732115437878,-968.571254,0.00023,7]
[342759384,1732115437890,-151.0,0.00023,7]
[342759385,1732115437902,-151.0,0.00023,7]
[342759386,1732115437914,-302.916299,0.00023,7]
[342759388,1732115437925,-302.916299,0.00023,7]
[342759389,1732115437936,-302.916299,0.00023,7]
[342759390,1732115437947,-302.916299,0.00023,7]
[342759391,1732115437957,-171.692444,0.00023,7]
[342759392,1732115437968,-171.692444,0.00023,7]
[342759393,1732115437979,-171.692444,0.00023,7]
[342759394,1732115437990,-171.692444,0.00023,7]
[342759395,1732115438001,-171.692444,0.00023,7]
[342759396,1732115438012,-171.692444,0.00023,7]
[342759397,1732115438024,-171.692444,0.00023,7]
[342759398,1732115438035,-171.692444,0.00023,7]
[342759399,1732115438047,-151.0,0.00023,7]
[342759400,1732115438058,-156.964222,0.00023,7]
[342759401,1732115438069,-151.0,0.00023,7]
[342759402,1732115438081,-151.0,0.00023,7]
[342759403,1732115438096,-151.0,0.00023,7]
[342759404,1732115438110,-272.008682,0.00023,7]
[342759405,1732115438123,-160.754765,0.00023,7]
[342759407,1732115438135,-164.852149,0.00023,7]
[342759408,1732115438146,-164.852149,0.00023,7]
[342759409,1732115438157,-164.852149,0.00023,7]
[342759410,1732115438169,-164.852149,0.00023,7]
[342759411,1732115438181,-164.852149,0.00023,7]
[342759412,1732115438195,-164.852149,0.00023,7]
[342759413,1732115438206,-164.852149,0.00023,7]
[342759414,1732115438367,-164.852149,0.00023,7]
[342759415,1732115438380,-216.02777,0.00023,7]
[342759416,1732115438390,-216.02777,0.00023,7]
[342759417,1732115438400,-216.02777,0.00023,7]
[342759418,1732115438411,-216.02777,0.00023,7]
[342759419,1732115438422,-216.02777,0.00023,7]
[342759420,1732115438432,-216.02777,0.00023,7]
[342759421,1732115438442,-216.02777,0.00023,7]
[342759422,1732115438452,-216.02777,0.00023,7]
[342759423,1732115438461,-151.0,0.00023,7]
[342759425,1732115438471,-151.0,0.00023,7]
[342759427,1732115438480,-179.919144,0.00023,7]
[342759429,1732115438490,-260.79734,0.00023,7]
[342759431,1732115438500,-260.79734,0.00023,7]
[342759433,1732115438510,-260.79734,0.00023,7]
[342759435,1732115438519,-260.79734,0.00023,7]
[342759437,1732115438529,-260.79734,0.00023,7]
[342759439,1732115438538,-260.79734,0.00023,7]
[342759441,1732115438548,-260.79734,0.00023,7]
[342759443,1732115438558,-260.79734,0.00023,7]
[342759445,1732115438567,-151.0,0.00023,7]
[342759446,1732115438578,-151.0,0.00023,7]
[342759448,1732115438588,-151.0,0.00023,7]
[342759450,1732115438602,-151.0,0.00023,7]
[342759452,1732115438612,-151.0,0.00023013,7]
[342759454,1732115438623,-375.99,0.00023013,2]
[342759456,1732115438633,-151.0,0.00023013,7]
[342759458,1732115438643,-151.0,0.00023013,7]
[342759460,1732115438653,-151.0,0.00023013,7]
[342759462,1732115438662,-166.424111,0.00023013,7]
[342759464,1732115438672,-166.424111,0.00023013,7]
[342759466,1732115438682,-500.0,0.00023013,2]
[342759468,1732115438692,-245.37,0.00023013,2]
[342759470,1732115438701,-220.06,0.00023013,2]
[342759472,1732115438710,-392.549347,0.00023013,7]
[342759474,1732115438719,-392.549347,0.00023013,7]
[342759475,1732115438729,-500.0,0.00023013,2]
[342759478,1732115438739,-560.72,0.00023013,2]
[342759480,1732115438749,-315.6,0.00023013,2]
[342759481,1732115438758,-500.0,0.00023013,2]
[342759483,1732115438769,-941.2,0.00023013,2]
[342759485,1732115438778,-500.0,0.00023013,2]
[342759488,1732115438788,-500.0,0.00023013,2]
[342759492,1732115438798,-1199.964133,0.00023013,7]
[342759496,1732115438807,-1199.964133,0.00023013,7]
[342759500,1732115438816,-689.189192,0.00023013,7]
[342759502,1732115438825,-689.189192,0.00023013,7]
[342759504,1732115438834,-172.60559519,0.00023013,2]
[342759506,1732115438847,-302.916299,0.00023013,7]
[342759508,1732115438857,-171.692444,0.00023013,7]
[342759510,1732115438866,-171.692444,0.00023013,7]
[342759512,1732115438876,-291.64580122,0.00023013,7]
[342759514,1732115438885,-500.0,0.00023013,2]
[342759516,1732115438895,-328.73074165,0.00023013,2]
[342759518,1732115438904,-3913.24,0.00023013,2]
[342759520,1732115438914,-500.0,0.00023013,2]
[342759522,1732115438924,-599.29,0.00023013,2]
[342759524,1732115438934,-500.0,0.00023013,2]
[342759525,1732115438943,-500.0,0.00023013,2]